[Event "*** Titled Tuesday Blitz"]
[Site "Chess.com"]
[Date "2020.10.20"]
[Round "1"]
[White "ciucas1892"]
[Black "Margency"]
[Result "0-1"]
[WhiteElo "2335"]
[BlackElo "2672"]
[TimeControl "180+1"]
[EndTime "10:01:48 PDT"]
[Termination "Margency won by resignation"]

1. c4 {[%clk 0:02:59.9]} 1... Nf6 {[%clk 0:03:00.1]} 2. g3 {[%clk 0:03:00.3]}
2... g6 {[%clk 0:03:00.8]} 3. Bg2 {[%clk 0:03:00.8]} 3... Bg7 {[%clk 0:03:01.5]}
4. Nf3 {[%clk 0:03:01.7]} 4... d6 {[%clk 0:03:02.1]} 5. O-O {[%clk 0:03:02.5]}
5... O-O {[%clk 0:03:02.8]} 6. d4 {[%clk 0:03:03.1]} 6... Nc6 {[%clk 0:03:02.5]}
7. Nc3 {[%clk 0:03:03.5]} 7... a6 {[%clk 0:03:03]} 8. e4 {[%clk 0:03:02.1]} 8...
Bg4 {[%clk 0:03:02.4]} 9. Be3 {[%clk 0:03:00.2]} 9... Nd7 {[%clk 0:03:02.5]} 10.
h3 {[%clk 0:02:57.3]} 10... Bxf3 {[%clk 0:03:02.4]} 11. Bxf3 {[%clk 0:02:57.9]}
11... e5 {[%clk 0:03:03]} 12. d5 {[%clk 0:02:54.5]} 12... Nd4 {[%clk 0:03:03]}
13. Bg2 {[%clk 0:02:45.8]} 13... c5 {[%clk 0:03:03.1]} 14. Qd2 {[%clk
0:02:40.9]} 14... b5 {[%clk 0:02:47.1]} 15. b3 {[%clk 0:02:34.1]} 15... bxc4
{[%clk 0:02:45.9]} 16. bxc4 {[%clk 0:02:34.1]} 16... Qa5 {[%clk 0:02:43.3]} 17.
Rab1 {[%clk 0:02:25.9]} 17... Qxc3 {[%clk 0:02:40.2]} 0-1

[Event "*** Titled Tuesday Blitz"]
[Site "Chess.com"]
[Date "2020.10.20"]
[Round "1"]
[White "Maghalashvili"]
[Black "ZarinaShafigullina"]
[Result "1-0"]
[WhiteElo "2669"]
[BlackElo "2330"]
[TimeControl "180+1"]
[EndTime "10:01:58 PDT"]
[Termination "Maghalashvili won by resignation"]

1. Nf3 {[%clk 0:02:57.3]} 1... Nf6 {[%clk 0:02:59.6]} 2. g3 {[%clk 0:02:57.3]}
2... b6 {[%clk 0:02:57.3]} 3. Bg2 {[%clk 0:02:57.3]} 3... Bb7 {[%clk 0:02:58.2]}
4. c4 {[%clk 0:02:57.9]} 4... c5 {[%clk 0:02:58.4]} 5. O-O {[%clk 0:02:57.9]}
5... e6 {[%clk 0:02:58.5]} 6. Nc3 {[%clk 0:02:57.1]} 6... Be7 {[%clk 0:02:58.5]}
7. d4 {[%clk 0:02:57.4]} 7... cxd4 {[%clk 0:02:58.4]} 8. Qxd4 {[%clk 0:02:58.3]}
8... d6 {[%clk 0:02:57.1]} 9. Rd1 {[%clk 0:02:57.8]} 9... a6 {[%clk 0:02:52]}
10. b3 {[%clk 0:02:57.3]} 10... Nbd7 {[%clk 0:02:51.7]} 11. e4 {[%clk
0:02:55.6]} 11... O-O {[%clk 0:02:47.8]} 12. Ba3 {[%clk 0:02:55]} 12... Nc5
{[%clk 0:02:47.3]} 13. e5 {[%clk 0:02:54.6]} 13... dxe5 {[%clk 0:02:47]} 14.
Qxd8 {[%clk 0:02:53.3]} 14... Rfxd8 {[%clk 0:02:46.3]} 15. Nxe5 {[%clk
0:02:52.5]} 15... Bxg2 {[%clk 0:02:44.9]} 16. Kxg2 {[%clk 0:02:53.4]} 16... Rac8
{[%clk 0:02:42.7]} 17. Rxd8+ {[%clk 0:02:48.4]} 17... Bxd8 {[%clk 0:02:38.3]}
18. Rd1 {[%clk 0:02:43.3]} 18... Be7 {[%clk 0:02:37.6]} 19. Na4 {[%clk
0:02:43.4]} 19... Nxa4 {[%clk 0:02:34.5]} 20. Bxe7 {[%clk 0:02:41]} 20... Ne4
{[%clk 0:02:33.2]} 21. bxa4 {[%clk 0:02:37.1]} 1-0

[Event "*** Titled Tuesday Blitz"]
[Site "Chess.com"]
[Date "2020.10.20"]
[Round "1"]
[White "dosto07"]
[Black "Karacsonyi_Gellert"]
[Result "1-0"]
[WhiteElo "2338"]
[BlackElo "2639"]
[TimeControl "180+1"]
[EndTime "10:02:49 PDT"]
[Termination "dosto07 won by resignation"]

1. e4 {[%clk 0:02:59]} 1... c5 {[%clk 0:02:59.3]} 2. Nf3 {[%clk 0:02:58.9]} 2...
Nc6 {[%clk 0:02:59.1]} 3. Bb5 {[%clk 0:02:58.1]} 3... g6 {[%clk 0:02:58.9]} 4.
O-O {[%clk 0:02:53.1]} 4... Bg7 {[%clk 0:02:59.3]} 5. c3 {[%clk 0:02:51.8]} 5...
Nf6 {[%clk 0:02:58.2]} 6. Re1 {[%clk 0:02:51.8]} 6... O-O {[%clk 0:02:57.2]} 7.
e5 {[%clk 0:02:51.8]} 7... Nd5 {[%clk 0:02:57.6]} 8. d4 {[%clk 0:02:52.5]} 8...
cxd4 {[%clk 0:02:54.9]} 9. cxd4 {[%clk 0:02:52.4]} 9... d6 {[%clk 0:02:55.4]}
10. Nc3 {[%clk 0:02:52.1]} 10... Nxc3 {[%clk 0:02:55.1]} 11. bxc3 {[%clk
0:02:51.1]} 11... dxe5 {[%clk 0:02:55.2]} 12. Bxc6 {[%clk 0:02:50.6]} 12... bxc6
{[%clk 0:02:54.5]} 13. Nxe5 {[%clk 0:02:51.5]} 13... Bd7 {[%clk 0:02:34.6]} 14.
Rb1 {[%clk 0:02:44.2]} 14... Bxe5 {[%clk 0:02:22.8]} 15. Rxe5 {[%clk 0:02:41.7]}
15... Be6 {[%clk 0:02:18.3]} 16. Bh6 {[%clk 0:02:35]} 16... Re8 {[%clk
0:02:17.8]} 17. Qe2 {[%clk 0:02:32.2]} 17... Qd7 {[%clk 0:02:14.9]} 18. Re1
{[%clk 0:02:16.6]} 18... Rab8 {[%clk 0:02:13.7]} 19. h4 {[%clk 0:02:15.5]} 19...
Rb5 {[%clk 0:01:58.1]} 20. Rxb5 {[%clk 0:02:06]} 20... cxb5 {[%clk 0:01:59]} 21.
Qe5 {[%clk 0:02:04.8]} 1-0

[Event "*** Titled Tuesday Blitz"]
[Site "Chess.com"]
[Date "2020.10.20"]
[Round "1"]
[White "MITerryble"]
[Black "ezkybel"]
[Result "1-0"]
[WhiteElo "2896"]
[BlackElo "2437"]
[TimeControl "180+1"]
[EndTime "10:03:05 PDT"]
[Termination "MITerryble won by resignation"]

1. e4 {[%clk 0:02:59]} 1... e6 {[%clk 0:02:59.4]} 2. d4 {[%clk 0:02:58.2]} 2...
d5 {[%clk 0:02:59.5]} 3. exd5 {[%clk 0:02:53.6]} 3... exd5 {[%clk 0:02:59.4]} 4.
Nf3 {[%clk 0:02:52.7]} 4... Bd6 {[%clk 0:02:59.6]} 5. c4 {[%clk 0:02:51.9]} 5...
dxc4 {[%clk 0:02:59.2]} 6. Bxc4 {[%clk 0:02:51.2]} 6... Nf6 {[%clk 0:02:59.5]}
7. O-O {[%clk 0:02:50.5]} 7... O-O {[%clk 0:02:59.3]} 8. Nc3 {[%clk 0:02:50.6]}
8... Bg4 {[%clk 0:02:58.6]} 9. h3 {[%clk 0:02:50.2]} 9... Bh5 {[%clk 0:02:58.8]}
10. g4 {[%clk 0:02:48.6]} 10... Bg6 {[%clk 0:02:58.7]} 11. Ne5 {[%clk
0:02:48.7]} 11... Nc6 {[%clk 0:02:57.8]} 12. f4 {[%clk 0:02:41.7]} 12... Ne4
{[%clk 0:02:55.1]} 13. Nxc6 {[%clk 0:02:15.5]} 13... Qh4 {[%clk 0:02:36.1]} 14.
Qf3 {[%clk 0:02:15.2]} 14... bxc6 {[%clk 0:02:32.8]} 15. Nxe4 {[%clk 0:02:11]}
15... Bxe4 {[%clk 0:02:31.5]} 16. Qxe4 {[%clk 0:02:11.9]} 16... Rae8 {[%clk
0:02:24.3]} 17. Qf3 {[%clk 0:02:05.7]} 17... c5 {[%clk 0:02:23.1]} 18. Be3
{[%clk 0:01:57.3]} 18... Rxe3 {[%clk 0:02:17.1]} 19. Qxe3 {[%clk 0:01:56.9]}
19... cxd4 {[%clk 0:02:15.8]} 20. Qf3 {[%clk 0:01:56]} 20... d3 {[%clk
0:02:14.2]} 21. Qxd3 {[%clk 0:01:46.4]} 21... Bc5+ {[%clk 0:02:11.9]} 22. Kg2
{[%clk 0:01:46.2]} 1-0

[Event "*** Titled Tuesday Blitz"]
[Site "Chess.com"]
[Date "2020.10.20"]
[Round "1"]
[White "Cocaino74"]
[Black "Guriempire"]
[Result "0-1"]
[WhiteElo "2391"]
[BlackElo "2800"]
[TimeControl "180+1"]
[EndTime "10:03:06 PDT"]
[Termination "Guriempire won by resignation"]

1. e4 {[%clk 0:03:00.7]} 1... c6 {[%clk 0:03:00.3]} 2. d4 {[%clk 0:03:00.5]}
2... d5 {[%clk 0:03:01.2]} 3. exd5 {[%clk 0:03:00.8]} 3... cxd5 {[%clk
0:03:01.2]} 4. Bd3 {[%clk 0:03:00.6]} 4... Nc6 {[%clk 0:03:00.6]} 5. c3 {[%clk
0:03:00.8]} 5... Qc7 {[%clk 0:03:01.2]} 6. h3 {[%clk 0:02:59.2]} 6... Nf6 {[%clk
0:03:00.4]} 7. Nf3 {[%clk 0:02:58.6]} 7... g6 {[%clk 0:03:00.9]} 8. O-O {[%clk
0:02:57.9]} 8... Bg7 {[%clk 0:03:00]} 9. Re1 {[%clk 0:02:55.2]} 9... Bf5 {[%clk
0:03:00.2]} 10. Na3 {[%clk 0:02:41.2]} 10... Bxd3 {[%clk 0:02:58]} 11. Qxd3
{[%clk 0:02:42.1]} 11... O-O {[%clk 0:02:57.9]} 12. Nb5 {[%clk 0:02:23]} 12...
Qd7 {[%clk 0:02:57]} 13. a4 {[%clk 0:02:21.5]} 13... Qf5 {[%clk 0:02:50.7]} 14.
Qxf5 {[%clk 0:02:18.1]} 14... gxf5 {[%clk 0:02:51.6]} 15. Bg5 {[%clk 0:02:17]}
15... Ne4 {[%clk 0:02:46.5]} 16. Nc7 {[%clk 0:02:17.1]} 16... Rad8 {[%clk
0:02:45.9]} 17. b4 {[%clk 0:01:55.1]} 17... Rd7 {[%clk 0:02:43]} 18. Nb5 {[%clk
0:01:38.6]} 18... a6 {[%clk 0:02:42.1]} 19. Na3 {[%clk 0:01:38.3]} 19... Nxc3
{[%clk 0:02:37.7]} 20. b5 {[%clk 0:01:34.9]} 20... axb5 {[%clk 0:02:37.9]} 21.
axb5 {[%clk 0:01:35.3]} 21... Nxd4 {[%clk 0:02:37.2]} 22. Bxe7 {[%clk
0:01:23.6]} 22... Nde2+ {[%clk 0:02:34.1]} 0-1

[Event "*** Titled Tuesday Blitz"]
[Site "Chess.com"]
[Date "2020.10.20"]
[Round "1"]
[White "Pawnpusherschessaccademy"]
[Black "doons21"]
[Result "0-1"]
[WhiteElo "2219"]
[BlackElo "2544"]
[TimeControl "180+1"]
[EndTime "10:03:31 PDT"]
[Termination "doons21 won by resignation"]

1. e4 {[%clk 0:03:00.2]} 1... c5 {[%clk 0:02:57.2]} 2. Nf3 {[%clk 0:03:00.4]}
2... d6 {[%clk 0:02:57.4]} 3. Bb5+ {[%clk 0:03:00.6]} 3... Bd7 {[%clk
0:02:57.2]} 4. Bxd7+ {[%clk 0:03:01]} 4... Qxd7 {[%clk 0:02:58.1]} 5. O-O {[%clk
0:03:01.4]} 5... Nc6 {[%clk 0:02:46.1]} 6. Qe2 {[%clk 0:03:02.3]} 6... g6 {[%clk
0:02:42.5]} 7. Rd1 {[%clk 0:03:02.5]} 7... Bg7 {[%clk 0:02:42.5]} 8. c3 {[%clk
0:03:03.1]} 8... Nf6 {[%clk 0:02:38]} 9. d4 {[%clk 0:03:02.4]} 9... cxd4 {[%clk
0:02:38.5]} 10. cxd4 {[%clk 0:03:03.1]} 10... d5 {[%clk 0:02:39.2]} 11. e5
{[%clk 0:03:02.2]} 11... Ne4 {[%clk 0:02:39.6]} 12. Ne1 {[%clk 0:03:01]} 12...
h6 {[%clk 0:02:32.3]} 13. h4 {[%clk 0:02:59.2]} 13... f6 {[%clk 0:02:22.2]} 14.
f3 {[%clk 0:02:55.6]} 14... Ng3 {[%clk 0:02:21.8]} 15. Qf2 {[%clk 0:02:54.7]}
15... Nf5 {[%clk 0:02:19.6]} 16. g4 {[%clk 0:02:50.2]} 16... Nfxd4 {[%clk
0:02:19.6]} 17. Rxd4 {[%clk 0:02:48.7]} 17... Nxd4 {[%clk 0:02:20]} 18. Qxd4
{[%clk 0:02:49.2]} 18... fxe5 {[%clk 0:02:20.1]} 19. Qd3 {[%clk 0:02:49]} 19...
e4 {[%clk 0:02:16.8]} 20. fxe4 {[%clk 0:02:45.2]} 20... Qxg4+ {[%clk 0:02:16.3]}
21. Ng2 {[%clk 0:02:45.2]} 21... O-O {[%clk 0:02:03.4]} 22. Qxd5+ {[%clk
0:02:41.9]} 22... Kh7 {[%clk 0:02:03.9]} 23. Nc3 {[%clk 0:02:40.9]} 23... Rad8
{[%clk 0:01:50.8]} 24. Qxb7 {[%clk 0:02:39.5]} 24... Bd4+ {[%clk 0:01:29.7]} 25.
Kh2 {[%clk 0:02:31.1]} 25... Be5+ {[%clk 0:01:29.8]} 26. Kg1 {[%clk 0:02:28.2]}
26... Rd1+ {[%clk 0:01:28.6]} 27. Nxd1 {[%clk 0:02:19.8]} 27... Qxd1+ {[%clk
0:01:29.5]} 0-1

[Event "*** Titled Tuesday Blitz"]
[Site "Chess.com"]
[Date "2020.10.20"]
[Round "1"]
[White "ChronicUnhappiness"]
[Black "albi1999"]
[Result "0-1"]
[WhiteElo "2285"]
[BlackElo "2612"]
[TimeControl "180+1"]
[EndTime "10:03:35 PDT"]
[Termination "albi1999 won by resignation"]

1. c4 {[%clk 0:03:00.3]} 1... e5 {[%clk 0:02:58.9]} 2. d3 {[%clk 0:02:55]} 2...
Bb4+ {[%clk 0:02:56.6]} 3. Bd2 {[%clk 0:02:54.2]} 3... Bxd2+ {[%clk 0:02:55.7]}
4. Qxd2 {[%clk 0:02:54.1]} 4... d6 {[%clk 0:02:55]} 5. Nc3 {[%clk 0:02:54.1]}
5... Ne7 {[%clk 0:02:54.8]} 6. g3 {[%clk 0:02:46.2]} 6... O-O {[%clk 0:02:54.9]}
7. Bg2 {[%clk 0:02:46.2]} 7... Nbc6 {[%clk 0:02:50.6]} 8. Nf3 {[%clk 0:02:46.2]}
8... f6 {[%clk 0:02:47.3]} 9. O-O {[%clk 0:02:45.4]} 9... Be6 {[%clk 0:02:48.2]}
10. b3 {[%clk 0:02:25.1]} 10... Qd7 {[%clk 0:02:47.6]} 11. d4 {[%clk 0:02:23.6]}
11... Bh3 {[%clk 0:02:42.5]} 12. Nd5 {[%clk 0:01:52.8]} 12... Bxg2 {[%clk
0:02:40.7]} 13. Kxg2 {[%clk 0:01:52.4]} 13... e4 {[%clk 0:02:30]} 14. Ne1 {[%clk
0:01:44]} 14... Nxd5 {[%clk 0:02:27.7]} 15. cxd5 {[%clk 0:01:43.5]} 15... Ne7
{[%clk 0:02:28.6]} 16. Qa5 {[%clk 0:01:21.1]} 16... b6 {[%clk 0:02:23.5]} 17.
Qa6 {[%clk 0:01:20.9]} 17... Nxd5 {[%clk 0:02:22.6]} 18. Qc4 {[%clk 0:01:17.5]}
18... c6 {[%clk 0:02:16.7]} 19. Rc1 {[%clk 0:01:16.5]} 19... Rac8 {[%clk
0:02:16.2]} 20. Nc2 {[%clk 0:01:16.3]} 20... b5 {[%clk 0:02:16]} 0-1

[Event "*** Titled Tuesday Blitz"]
[Site "Chess.com"]
[Date "2020.10.20"]
[Round "1"]
[White "Supernotar"]
[Black "atalz0"]
[Result "1-0"]
[WhiteElo "2856"]
[BlackElo "2422"]
[TimeControl "180+1"]
[EndTime "10:03:49 PDT"]
[Termination "Supernotar won on time"]

1. d4 {[%clk 0:02:57.2]} 1... Nf6 {[%clk 0:00:31]} 2. c4 {[%clk 0:02:47]} 2...
e6 {[%clk 0:00:30.2]} 3. Nf3 {[%clk 0:02:47]} 3... d5 {[%clk 0:00:29.7]} 4. e3
{[%clk 0:02:47.1]} 4... c5 {[%clk 0:00:27]} 5. dxc5 {[%clk 0:02:47.4]} 5... Bxc5
{[%clk 0:00:26.6]} 6. a3 {[%clk 0:02:47.8]} 6... a6 {[%clk 0:00:22.2]} 7. b4
{[%clk 0:02:47.7]} 7... Ba7 {[%clk 0:00:22.3]} 8. Bb2 {[%clk 0:02:47.9]} 8...
O-O {[%clk 0:00:23.2]} 9. Nbd2 {[%clk 0:02:48]} 9... Nc6 {[%clk 0:00:17.5]} 10.
Rc1 {[%clk 0:02:47.9]} 10... Qe7 {[%clk 0:00:09.1]} 11. Be2 {[%clk 0:02:47.9]}
11... Rd8 {[%clk 0:00:07.5]} 12. O-O {[%clk 0:02:47.8]} 12... dxc4 {[%clk
0:00:07.2]} 13. Bxc4 {[%clk 0:02:47.7]} 1-0

[Event "*** Titled Tuesday Blitz"]
[Site "Chess.com"]
[Date "2020.10.20"]
[Round "1"]
[White "AleksanderHnydiuk"]
[Black "SerLanselot"]
[Result "1-0"]
[WhiteElo "2557"]
[BlackElo "2223"]
[TimeControl "180+1"]
[EndTime "10:04:04 PDT"]
[Termination "AleksanderHnydiuk won by resignation"]

1. e4 {[%clk 0:03:00.9]} 1... d6 {[%clk 0:02:58.6]} 2. d4 {[%clk 0:03:00.3]}
2... Nf6 {[%clk 0:02:58.8]} 3. Nc3 {[%clk 0:02:59.9]} 3... g6 {[%clk 0:02:59.1]}
4. f4 {[%clk 0:02:53.3]} 4... Bg7 {[%clk 0:02:58.5]} 5. Nf3 {[%clk 0:02:53.5]}
5... O-O {[%clk 0:02:56.6]} 6. e5 {[%clk 0:02:51.4]} 6... Nfd7 {[%clk
0:02:56.2]} 7. Bc4 {[%clk 0:02:50.4]} 7... Nb6 {[%clk 0:02:56.5]} 8. Bb3 {[%clk
0:02:50.3]} 8... Nc6 {[%clk 0:02:54.8]} 9. a4 {[%clk 0:02:41.6]} 9... a5 {[%clk
0:02:40.6]} 10. O-O {[%clk 0:02:40.4]} 10... d5 {[%clk 0:02:39.9]} 11. Ne2
{[%clk 0:02:21.8]} 11... f6 {[%clk 0:02:31.2]} 12. c3 {[%clk 0:02:21]} 12...
fxe5 {[%clk 0:02:28.3]} 13. fxe5 {[%clk 0:02:21.8]} 13... e6 {[%clk 0:02:24.1]}
14. Bg5 {[%clk 0:02:16]} 14... Qe8 {[%clk 0:02:21.9]} 15. Qe1 {[%clk 0:02:05.3]}
15... Ne7 {[%clk 0:02:20.5]} 16. Qh4 {[%clk 0:01:56.6]} 16... Nf5 {[%clk
0:02:20.2]} 17. Qh3 {[%clk 0:01:56.7]} 17... h6 {[%clk 0:02:12.7]} 18. Bd2
{[%clk 0:01:53]} 18... g5 {[%clk 0:02:12.7]} 19. g4 {[%clk 0:01:45.7]} 19... Ne7
{[%clk 0:02:11.2]} 20. Bc2 {[%clk 0:01:37.7]} 20... Ng6 {[%clk 0:01:59.9]} 21.
Bxg5 {[%clk 0:01:32.1]} 21... Rxf3 {[%clk 0:01:48.6]} 22. Rxf3 {[%clk 0:01:33]}
22... hxg5 {[%clk 0:01:48.2]} 23. Qh5 {[%clk 0:01:32.8]} 1-0

[Event "*** Titled Tuesday Blitz"]
[Site "Chess.com"]
[Date "2020.10.20"]
[Round "1"]
[White "Beca95"]
[Black "GlennTipton"]
[Result "1-0"]
[WhiteElo "2896"]
[BlackElo "2441"]
[TimeControl "180+1"]
[EndTime "10:04:08 PDT"]
[Termination "Beca95 won by resignation"]

1. Nf3 {[%clk 0:03:00.3]} 1... d5 {[%clk 0:03:00]} 2. e3 {[%clk 0:02:59.4]} 2...
c6 {[%clk 0:03:00.1]} 3. c4 {[%clk 0:02:59.3]} 3... Nf6 {[%clk 0:03:01]} 4. Nc3
{[%clk 0:02:59.5]} 4... a6 {[%clk 0:03:00.1]} 5. d4 {[%clk 0:02:59.5]} 5... b5
{[%clk 0:02:59.2]} 6. b3 {[%clk 0:03:00]} 6... Bg4 {[%clk 0:02:59.1]} 7. h3
{[%clk 0:03:00.4]} 7... Bxf3 {[%clk 0:02:59.2]} 8. gxf3 {[%clk 0:03:01.3]} 8...
Nbd7 {[%clk 0:02:58.2]} 9. f4 {[%clk 0:03:01.6]} 9... g6 {[%clk 0:02:57.9]} 10.
Qc2 {[%clk 0:03:01.5]} 10... Bg7 {[%clk 0:02:57.8]} 11. c5 {[%clk 0:03:01.8]}
11... Nh5 {[%clk 0:02:52.9]} 12. Ne2 {[%clk 0:02:57.8]} 12... f5 {[%clk
0:02:47.8]} 13. Ng1 {[%clk 0:02:57.3]} 13... a5 {[%clk 0:02:47.2]} 14. a3 {[%clk
0:02:56.7]} 14... a4 {[%clk 0:02:44.6]} 15. b4 {[%clk 0:02:56.6]} 15... e6
{[%clk 0:02:40.6]} 16. Nf3 {[%clk 0:02:56.6]} 16... Bf6 {[%clk 0:02:39.5]} 17.
Bb2 {[%clk 0:02:56.6]} 17... h6 {[%clk 0:02:36.1]} 18. O-O-O {[%clk 0:02:55.9]}
18... g5 {[%clk 0:02:32.6]} 19. Re1 {[%clk 0:02:52.6]} 19... Qe7 {[%clk
0:02:20.2]} 20. Kb1 {[%clk 0:02:50.9]} 20... gxf4 {[%clk 0:02:01.3]} 21. exf4
{[%clk 0:02:51.8]} 21... Nxf4 {[%clk 0:02:01.6]} 22. Bc1 {[%clk 0:02:50.6]}
22... Ng6 {[%clk 0:01:53.5]} 23. Bd3 {[%clk 0:02:48.8]} 23... Ngf8 {[%clk
0:01:23.1]} 24. Bxf5 {[%clk 0:02:46.9]} 24... O-O-O {[%clk 0:01:21.2]} 25. Rhg1
{[%clk 0:02:46.2]} 25... Re8 {[%clk 0:01:18.7]} 26. Bd3 {[%clk 0:02:39.3]} 26...
e5 {[%clk 0:01:15.8]} 27. dxe5 {[%clk 0:02:39]} 27... Nxe5 {[%clk 0:01:16.2]}
28. Nxe5 {[%clk 0:02:39.1]} 28... Bxe5 {[%clk 0:01:15.3]} 29. f4 {[%clk
0:02:39.3]} 29... Nd7 {[%clk 0:01:10]} 30. fxe5 {[%clk 0:02:38.8]} 30... Nxe5
{[%clk 0:01:10.9]} 31. Bf5+ {[%clk 0:02:38.4]} 31... Kb7 {[%clk 0:01:10.2]} 32.
Bb2 {[%clk 0:02:30.1]} 32... Qc7 {[%clk 0:01:06.6]} 33. Qh2 {[%clk 0:02:27.5]}
33... Nc4 {[%clk 0:01:02.5]} 34. Qxc7+ {[%clk 0:02:25.6]} 34... Kxc7 {[%clk
0:01:03.4]} 35. Bxh8 {[%clk 0:02:25.4]} 1-0

[Event "*** Titled Tuesday Blitz"]
[Site "Chess.com"]
[Date "2020.10.20"]
[Round "1"]
[White "swimmerchess"]
[Black "Unknown_IM"]
[Result "1-0"]
[WhiteElo "2771"]
[BlackElo "2379"]
[TimeControl "180+1"]
[EndTime "10:04:17 PDT"]
[Termination "swimmerchess won by resignation"]

1. e4 {[%clk 0:03:00.9]} 1... e5 {[%clk 0:02:59.7]} 2. Nf3 {[%clk 0:03:00.7]}
2... Nc6 {[%clk 0:02:58.4]} 3. Bb5 {[%clk 0:03:01]} 3... a6 {[%clk 0:02:56.6]}
4. Ba4 {[%clk 0:03:01.2]} 4... Nf6 {[%clk 0:02:56.1]} 5. O-O {[%clk 0:03:01.3]}
5... Be7 {[%clk 0:02:55.8]} 6. Re1 {[%clk 0:03:01.5]} 6... b5 {[%clk 0:02:52.1]}
7. Bb3 {[%clk 0:03:01.6]} 7... d6 {[%clk 0:02:52.1]} 8. c3 {[%clk 0:03:01.7]}
8... O-O {[%clk 0:02:50.3]} 9. h3 {[%clk 0:03:02]} 9... Nb8 {[%clk 0:02:50.7]}
10. d4 {[%clk 0:03:02]} 10... Nbd7 {[%clk 0:02:51.2]} 11. Nbd2 {[%clk
0:03:02.6]} 11... Bb7 {[%clk 0:02:51.2]} 12. Bc2 {[%clk 0:03:03.3]} 12... Re8
{[%clk 0:02:49.2]} 13. Nf1 {[%clk 0:03:02.4]} 13... Bf8 {[%clk 0:02:49.8]} 14.
Ng3 {[%clk 0:03:02.7]} 14... g6 {[%clk 0:02:49.9]} 15. Bg5 {[%clk 0:02:59.5]}
15... exd4 {[%clk 0:02:45.6]} 16. cxd4 {[%clk 0:02:59.4]} 16... c5 {[%clk
0:02:45]} 17. e5 {[%clk 0:02:41.8]} 17... Bxf3 {[%clk 0:01:31.3]} 18. Qxf3
{[%clk 0:02:40.5]} 18... Qa5 {[%clk 0:01:31.6]} 19. Bxf6 {[%clk 0:02:37.8]}
19... Nxf6 {[%clk 0:01:30.3]} 20. Qxf6 {[%clk 0:02:38.7]} 20... dxe5 {[%clk
0:01:27.8]} 21. dxe5 {[%clk 0:02:37.3]} 21... Bg7 {[%clk 0:01:27.7]} 22. Qf4
{[%clk 0:02:36.6]} 22... Qc7 {[%clk 0:01:13.5]} 23. Ne4 {[%clk 0:02:31.7]} 23...
Bxe5 {[%clk 0:01:12.6]} 24. Nf6+ {[%clk 0:02:31.3]} 24... Kh8 {[%clk 0:01:05.4]}
25. Nxe8 {[%clk 0:02:31.1]} 25... Rxe8 {[%clk 0:01:02.7]} 26. Qf3 {[%clk
0:02:28.7]} 26... f5 {[%clk 0:00:55]} 27. Re2 {[%clk 0:02:27.5]} 27... Rd8
{[%clk 0:00:47.5]} 28. Rae1 {[%clk 0:02:25.2]} 28... Bd4 {[%clk 0:00:47.5]} 29.
Re7 {[%clk 0:02:23.2]} 29... Qd6 {[%clk 0:00:44.6]} 30. Qb7 {[%clk 0:02:22.4]}
1-0

[Event "*** Titled Tuesday Blitz"]
[Site "Chess.com"]
[Date "2020.10.20"]
[Round "1"]
[White "KetiGrant"]
[Black "Volodar_Murzin"]
[Result "0-1"]
[WhiteElo "2287"]
[BlackElo "2614"]
[TimeControl "180+1"]
[EndTime "10:04:23 PDT"]
[Termination "Volodar_Murzin won by resignation"]

1. e4 {[%clk 0:02:57.1]} 1... c5 {[%clk 0:02:48.9]} 2. Nf3 {[%clk 0:02:55.4]}
2... d6 {[%clk 0:02:49.2]} 3. Bb5+ {[%clk 0:02:54.6]} 3... Nd7 {[%clk
0:02:48.3]} 4. O-O {[%clk 0:02:50.3]} 4... Nf6 {[%clk 0:02:46.3]} 5. Re1 {[%clk
0:02:49.2]} 5... e6 {[%clk 0:02:40.9]} 6. c3 {[%clk 0:02:48.1]} 6... Be7 {[%clk
0:02:39.7]} 7. d4 {[%clk 0:02:47.5]} 7... O-O {[%clk 0:02:37.8]} 8. Nbd2 {[%clk
0:02:26.9]} 8... cxd4 {[%clk 0:02:34.1]} 9. cxd4 {[%clk 0:02:26.1]} 9... a6
{[%clk 0:02:34]} 10. Bd3 {[%clk 0:02:24.8]} 10... b5 {[%clk 0:02:32.3]} 11. e5
{[%clk 0:02:21.7]} 11... dxe5 {[%clk 0:02:31.6]} 12. dxe5 {[%clk 0:02:21.6]}
12... Nd5 {[%clk 0:02:32]} 13. Ne4 {[%clk 0:02:21.2]} 13... Bb7 {[%clk
0:02:31.9]} 14. a3 {[%clk 0:02:15.1]} 14... Rc8 {[%clk 0:02:27.6]} 15. Bg5
{[%clk 0:02:10.8]} 15... Nxe5 {[%clk 0:02:17.5]} 16. Nxe5 {[%clk 0:02:02.8]}
16... Bxg5 {[%clk 0:02:16]} 17. Qg4 {[%clk 0:01:27.1]} 17... Bf4 {[%clk
0:02:03.6]} 18. Ng3 {[%clk 0:00:59.3]} 18... f5 {[%clk 0:01:56.3]} 19. Qh5
{[%clk 0:00:50.9]} 19... Bxe5 {[%clk 0:01:53.5]} 20. Rxe5 {[%clk 0:00:49.1]}
20... Nf4 {[%clk 0:01:53]} 0-1